bitfinex-derivatives/quotes_ETHF0:USTF0_20250520
["timestamp","ask_amount","ask_price","bid_price","bid_amount"]
[1747781456675,4.27090575,2508.5,2508.4,0.79708]
[1747781456975,4.27090575,2508.5,2508.4,2.17418]
[1747781457165,4.27090575,2508.5,2508.4,4.16744499]
[1747781459275,5.57150575,2508.5,2508.4,3.10922818]
[1747781459777,6.36854575,2508.5,2508.4,1.11596319]
[1747781460472,5.57150575,2508.5,2508.4,1.11596319]
[1747781460673,4.27090575,2508.5,2508.4,3.10922818]
[1747781461268,4.27090575,2508.5,2508.4,4.41872818]
[1747781461568,5.06794575,2508.5,2508.4,4.41872818]
[1747781461877,5.06794575,2508.5,2508.4,3.10922818]
[1747781462179,5.06794575,2508.5,2508.4,0.31888319]
[1747781462772,6.41664575,2508.5,2508.4,0.31888319]
[1747781463075,11.41664575,2508.5,2508.4,0.31888319]
[1747781464078,0.79711,2508.3,2508.2,0.79714]
[1747781464280,0.79717,2508.1,2508.0,4.29648181]
[1747781464479,5.06210037,2508.1,2508.0,4.29648181]
[1747781465074,6.41080037,2508.1,2508.0,4.29648181]
[1747781465880,6.41080037,2508.1,2508.0,4.32993045]
[1747781468876,6.41080037,2508.1,2508.0,3.53273045]
[1747781469183,6.41080037,2508.1,2508.0,0.32493045]
[1747781470077,6.41080037,2508.1,2508.0,1.12213045]
[1747781470380,6.41080037,2508.1,2508.0,0.32493045]
[1747781470581,6.41080037,2508.1,2508.0,1.12213045]
[1747781471282,6.41080037,2508.1,2508.0,0.80317538]
[1747781471981,5.61363037,2508.1,2508.0,0.80317538]
[1747781472872,2.40583037,2508.1,2508.0,2.79675538]
[1747781473181,1.05713037,2508.1,2508.0,11.00455538]
[1747781473381,0.00597538,2508.5,2508.4,0.79708]
[1747781473678,0.00597538,2508.5,2508.4,0.88194477]
[1747781473879,0.00597538,2508.5,2508.4,2.87520976]
[1747781474075,0.00597538,2508.5,2508.4,4.83870976]
[1747781474989,0.00597538,2508.5,2508.4,5.15757789]
[1747781476380,0.00597538,2508.5,2508.4,10.15757789]
[1747781476575,0.66341441,2508.7,2508.6,0.79701]
[1747781476886,0.99271388,2508.9,2508.8,0.79695]
[1747781477089,0.99271388,2508.9,2508.8,13.30395]
[1747781477279,0.99271388,2508.9,2508.8,15.296895]
[1747781478579,0.99271388,2508.9,2508.8,15.940495]
[1747781478789,0.99271388,2508.9,2508.8,20.940495]
[1747781479184,0.00597538,2509.1,2509.0,0.79688]
[1747781479391,0.00597538,2509.1,2509.0,4.00468]
[1747781479683,0.00597538,2509.1,2509.0,7.280865]
[1747781480080,6.00341038,2509.1,2509.0,0.31886813]
[1747781480283,11.00341038,2509.1,2509.0,0.31886813]
[1747781480989,25.55311038,2509.1,2509.0,0.31886813]
[1747781481686,1.99222,2509.0,2508.5,0.79704]
[1747781481883,4.00481,2508.6,2508.5,0.79704]
[1747781482276,0.79708,2508.4,2508.3,3.2078]
[1747781482594,4.00488,2508.4,2508.3,4.00491]
[1747781482779,0.79708,2508.4,2508.3,5.99825]
[1747781483089,7.39822,2508.4,2508.3,3.2078]
[1747781484383,7.39822,2508.4,2508.3,4.00491]
[1747781484790,7.39822,2508.4,2508.3,4.32380926]
[1747781486795,6.60114,2508.4,2508.3,4.32380926]
[1747781487384,7.39822,2508.4,2508.3,4.32380926]
[1747781487689,7.39822,2508.4,2508.3,0.31889926]
[1747781489089,7.39822,2508.4,2508.3,0.79711]
[1747781489090,6.60114,2508.4,2508.3,0.79711]
[1747781489287,2.375077,2509.0,2508.9,0.79692]
[1747781489490,2.375077,2509.0,2508.9,4.00472]
[1747781489682,2.375077,2509.0,2508.9,5.997585]
[1747781490691,2.375077,2509.0,2508.9,7.358885]
[1747781490895,0.00597538,2509.1,2509.0,0.79688]
[1747781491082,0.00597538,2509.1,2509.0,2.15818]
[1747781491283,0.00597538,2509.1,2509.0,4.150965]
[1747781492091,0.00597538,2509.1,2509.0,4.46975201]
[1747781492592,0.80282538,2509.1,2509.0,4.46975201]
[1747781492792,0.00597538,2509.1,2509.0,4.46975201]
[1747781495388,0.80282538,2509.1,2509.0,4.46975201]
[1747781495891,6.00341038,2509.1,2509.0,0.31878701]
[1747781496394,5.20656038,2509.1,2509.0,1.11566701]
[1747781496593,6.54216038,2509.1,2509.0,1.11566701]
[1747781497595,7.33901038,2509.1,2509.0,0.79688]
[1747781500595,6.54216038,2509.1,2508.8,1.3189]
[1747781500790,3.2078,2508.9,2508.8,1.3189]
[1747781500991,4.00472,2508.9,2508.8,2.11583]
[1747781501193,0.79692,2508.9,2508.8,2.11583]
[1747781501498,4.00472,2508.9,2508.8,2.11583]
[1747781501998,4.00472,2508.9,2508.8,2.43466389]
[1747781502999,0.79691,2509.0,2508.9,0.79692]
[1747781503292,3.2078,2508.9,2508.8,2.43468389]
[1747781503498,4.54937538,2509.1,2509.0,0.79688]
[1747781503895,5.34622538,2509.1,2509.0,0.79688]
[1747781505498,4.54937538,2509.1,2509.0,0.79688]
[1747781505698,3.21377538,2509.1,2509.0,3.10848167]
[1747781506090,4.01062538,2509.1,2509.0,3.10848167]
[1747781506290,3.21377538,2509.1,2509.0,4.42998167]
[1747781506500,4.61517538,2509.1,2509.0,4.42998167]
[1747781506701,5.41202538,2509.1,2509.0,2.31160167]
[1747781506995,5.41202538,2509.1,2509.0,1.11569667]
[1747781509197,4.61517538,2509.1,2509.0,1.11569667]
[1747781509499,4.61517538,2509.1,2509.0,0.79688]
[1747781510096,3.21377538,2509.1,2509.0,2.789665]
[1747781510597,0.00597538,2509.1,2509.0,2.789665]
[1747781510801,0.00597538,2509.1,2509.0,4.725965]
[1747781512193,0.00597538,2509.1,2509.0,5.04475862]
[1747781512399,0.6716,2509.6,2509.5,0.79673]
[1747781512599,3.8794,2509.6,2509.5,0.79673]
[1747781512905,5.87179,2509.6,2509.5,0.79673]
[1747781513098,5.87179,2509.6,2509.5,2.11053]
[1747781514406,6.66848,2509.6,2509.5,2.11053]
[1747781514608,5.87179,2509.6,2509.5,2.11053]
[1747781515110,6.66848,2509.6,2509.5,2.11053]
[1747781515307,5.87179,2509.6,2509.5,2.11053]
[1747781515504,0.79698,2508.7,2508.6,0.76699512]
[1747781515711,4.00478,2508.7,2508.6,0.76699512]
[1747781516007,5.200905,2508.7,2508.6,1.56400512]
[1747781516306,3.2078,2508.7,2508.6,3.55711012]
[1747781516506,2.8029,2508.9,2508.8,0.79695]
[1747781516804,3.2078,2509.5,2508.7,13.8265]
[1747781517014,3.2078,2509.2,2509.1,0.79685]
[1747781517215,5.582877,2509.5,2509.4,0.79676]
[1747781517414,5.582877,2509.5,2509.4,2.78923]
[1747781517613,0.79679,2509.3,2509.2,1.4056]
[1747781517807,0.79683,2509.2,2509.1,0.79685]
[1747781518004,5.1902,2509.2,2508.9,2.0872]
[1747781518208,3.2078,2509.1,2509.0,0.79688]
[1747781518420,3.2078,2509.1,2509.0,2.20248]
[1747781518716,2.6777,2509.2,2509.1,0.79685]
[1747781519218,7.87820501,2509.2,2509.1,0.79685]
[1747781520515,7.87820501,2509.2,2509.0,1.4056]
[1747781520710,0.79695,2508.8,2508.7,3.2078]
[1747781520904,4.00475,2508.8,2508.7,3.2078]
[1747781521110,5.997775,2508.8,2508.7,3.2078]
[1747781521521,5.997775,2508.8,2508.7,4.00478]
[1747781521522,5.200825,2508.8,2508.7,4.00478]
[1747781521816,1.993025,2508.8,2508.7,4.00478]
[1747781522013,0.79695,2508.8,2508.7,5.997785]
[1747781522208,0.79694,2508.9,2508.7,5.200825]
[1747781522412,0.79694,2508.9,2508.8,0.79694]
[1747781522621,0.79689,2509.0,2508.9,0.7969]
[1747781522817,4.00475,2508.8,2508.7,3.52666301]
[1747781523319,5.997775,2508.8,2508.7,0.31886301]
[1747781523819,5.997775,2508.8,2508.7,1.11584301]
[1747781524017,5.200825,2508.8,2508.7,1.11584301]
[1747781524213,5.997775,2508.8,2508.7,1.11584301]
[1747781524408,0.79714,2508.2,2508.1,3.2078]
[1747781524610,4.005,2508.0,2507.9,2.76548041]
[1747781524811,0.7973,2507.7,2507.6,3.58923641]
[1747781525019,0.79739,2507.4,2507.3,4.60833995]
[1747781525219,7.21299,2507.4,2507.3,4.60833995]
[1747781525419,14.207125,2507.4,2507.3,4.60833995]
[1747781526220,9.207125,2507.4,2507.3,1.34329429]
[1747781526416,8.409735,2507.4,2507.3,2.14072429]
[1747781526728,9.207125,2507.4,2507.3,0.79743]
[1747781527223,8.409735,2507.4,2507.1,2.65648892]
[1747781527420,3.2078,2507.3,2507.2,0.79746]
[1747781527922,4.00521,2507.4,2507.3,0.79743]
[1747781528311,8.409735,2507.4,2507.3,0.79743]
[1747781529127,3.2078,2507.4,2507.3,2.791565]
[1747781529722,0.00597538,2507.6,2507.5,0.79736]
[1747781530218,0.00597538,2507.6,2507.5,2.79134]
[1747781530423,0.00597538,2507.6,2507.5,4.15214]
[1747781530921,3.2078,2508.3,2508.2,0.79714]
[1747781531323,3.2078,2508.3,2508.2,2.79056]
[1747781531622,3.69717578,2508.6,2508.5,0.79704]
[1747781531824,3.69717578,2508.6,2508.5,4.00484]
[1747781532020,6.90497578,2508.6,2508.5,2.790225]
[1747781532524,9.73088378,2508.6,2508.5,0.79704]
[1747781532919,10.52789378,2508.6,2508.4,0.79706]
[1747781533119,3.2078,2508.5,2508.4,0.79706]
[1747781533318,3.2078,2508.5,2508.2,12.491]
[1747781533522,3.2078,2508.3,2508.2,13.28814]
[1747781534024,3.2078,2508.3,2508.2,15.28156]
[1747781534222,3.2078,2508.3,2508.2,0.79714]
[1747781534223,4.00491,2508.3,2508.2,0.79714]
[1747781534416,5.99833,2508.3,2508.2,0.79714]
[1747781534719,8.40902,2508.3,2508.1,0.79715]
[1747781534919,3.2078,2508.0,2507.7,18.96835]
[1747781535121,1.3892,2507.9,2507.8,0.79727]
[1747781535323,1.3892,2507.9,2507.8,2.07357]
[1747781535522,3.2078,2508.3,2508.2,0.79714]
[1747781535727,1.3125,2508.5,2508.4,0.79708]
[1747781536228,6.513565,2508.5,2508.4,0.79708]
[1747781536928,0.79708,2508.4,2508.3,0.79708]
[1747781537223,1.3125,2508.4,2508.3,0.79708]
[1747781537419,6.51364,2508.4,2508.3,0.79708]
[1747781540132,0.79711,2508.3,2508.2,0.08486477]
[1747781540427,9.88521,2508.3,2508.2,0.08486477]
[1747781540627,11.87863,2508.3,2508.2,0.88200477]
[1747781541022,11.87863,2508.3,2508.2,0.08486477]
[1747781541219,11.87863,2508.3,2508.2,0.88200477]
[1747781541420,16.87863,2508.3,2508.2,0.08486477]
[1747781541727,0.79725,2507.9,2507.5,1.99339]
[1747781542026,3.2078,2507.6,2507.5,0.79736]
[1747781542432,5.20178,2507.6,2507.5,0.79736]
[1747781542723,1.32,2507.8,2507.7,0.7973]
[1747781542930,4.5278,2507.8,2507.7,0.7973]
[1747781543422,6.52162,2507.8,2507.7,0.7973]
[1747781544123,1.32,2507.8,2507.7,0.7973]
[1747781544628,4.00495,2508.2,2508.1,0.79717]
[1747781544629,3.2078,2508.2,2508.1,0.79717]
[1747781545128,1.3129,2508.5,2508.4,0.79708]
[1747781545431,3.306165,2508.5,2508.4,0.79708]
[1747781545626,6.513965,2508.5,2508.4,0.79708]
[1747781545823,0.00597538,2508.8,2508.7,0.79698]
[1747781546022,1.31887538,2508.8,2508.7,0.79698]
[1747781546228,4.52667538,2508.8,2508.7,0.79698]
[1747781546431,6.51970038,2508.8,2508.7,0.79698]
[1747781546932,7.31665038,2508.8,2508.7,0.79698]
[1747781547126,6.51970038,2508.8,2508.5,0.00597538]
[1747781547331,4.00481,2508.6,2508.5,0.80301538]
[1747781547527,3.2078,2508.6,2508.5,0.80301538]
[1747781547832,4.6145,2508.6,2508.5,0.80301538]
[1747781548027,3.2078,2508.6,2508.5,2.79620038]
[1747781548235,4.6145,2508.6,2508.5,0.80301538]
[1747781548434,6.607685,2508.6,2508.5,0.80301538]
[1747781548931,4.6145,2508.6,2508.5,0.80301538]
[1747781549332,6.607685,2508.6,2508.5,0.80301538]
[1747781551238,5.200985,2508.6,2508.5,0.80301538]
[1747781551536,3.2078,2508.7,2508.6,0.79701]
[1747781551737,1.38807538,2508.8,2508.6,0.79701]
[1747781551738,0.00597538,2508.8,2508.7,0.79698]
[1747781552131,0.00597538,2508.8,2508.7,2.790005]
[1747781552334,5.38e-06,2508.8,2508.7,10.997805]
[1747781552733,5.38e-06,2508.8,2508.7,5.997805]
[1747781553036,5.38e-06,2508.8,2508.7,2.790005]
[1747781553633,5.38e-06,2508.8,2508.7,15.487005]
[1747781555735,5.38e-06,2508.8,2508.7,2.790005]
[1747781556041,5.38e-06,2508.8,2508.7,0.79698]
[1747781556340,1.37170538,2508.8,2508.7,0.79698]
[1747781557540,6.57253038,2508.8,2508.6,0.797]
[1747781557740,7.21261,2508.7,2508.6,0.797]
[1747781557935,9.25031,2508.7,2508.6,0.797]
[1747781558240,11.243415,2508.7,2508.6,0.797]
[1747781559235,10.446405,2508.7,2508.6,0.797]
[1747781559440,4.5799,2508.7,2508.6,0.797]
[1747781559637,6.573005,2508.7,2508.6,0.797]
[1747781559938,4.5799,2508.7,2508.6,2.1779]
[1747781560341,4.5799,2508.7,2508.6,0.797]
[1747781560538,7.369985,2508.7,2508.6,0.797]
[1747781560944,9.780805,2508.7,2508.6,0.797]
[1747781561545,6.573005,2508.7,2508.6,0.797]
[1747781562642,7.369985,2508.7,2508.6,0.797]
[1747781565445,10.577785,2508.7,2508.6,0.797]
[1747781567042,9.780805,2508.7,2508.6,0.797]
[1747781567345,0.79701,2508.6,2508.5,0.09084015]
[1747781567541,5.32681,2508.6,2508.5,0.09084015]
[1747781567842,12.319995,2508.6,2508.5,0.00597538]
[1747781570247,12.995695,2508.6,2508.5,0.00597538]
[1747781571354,7.995695,2508.6,2508.5,0.00597538]
[1747781572044,0.79721,2508.1,2508.0,0.79717]
[1747781572548,5.99859001,2508.1,2508.0,0.79717]
[1747781573156,7.38649001,2508.1,2508.0,0.79717]
[1747781573751,7.38649001,2508.1,2507.9,0.79721]
[1747781573752,0.79723,2508.0,2507.9,0.79721]
[1747781573954,0.79723,2508.0,2507.8,0.80323538]
[1747781573955,4.00503,2507.9,2507.8,0.80323538]
[1747781574452,4.17887,2507.9,2507.8,0.80323538]
[1747781574652,10.59447,2507.9,2507.8,0.00597538]
[1747781575250,15.59447,2507.9,2507.8,0.32493886]
[1747781576051,15.59447,2507.9,2507.8,0.40980363]
[1747781577055,15.59447,2507.9,2507.8,0.00597538]
[1747781578452,10.59447,2507.9,2507.8,0.00597538]
[1747781580352,6.58944,2507.9,2507.8,0.80324538]
[1747781580550,3.2078,2507.9,2507.8,2.79698538]
[1747781580750,2.375077,2508.3,2508.2,0.79714]
[1747781581158,2.375077,2508.3,2508.2,2.79056]
[1747781581959,3.172187,2508.3,2508.2,2.79056]
[1747781582153,0.79711,2508.3,2508.2,2.79056]
[1747781583157,1.3488,2508.4,2508.1,2.17405]
[1747781583158,0.79714,2508.2,2508.1,2.17405]
[1747781583857,0.79714,2508.2,2507.9,1.3209]
[1747781583858,0.7972,2508.1,2508.0,0.79718]
[1747781584060,5.3538,2508.1,2508.0,0.79718]
[1747781584357,7.34738001,2508.1,2508.0,0.79718]
[1747781584558,7.34738001,2508.1,2508.0,2.12908]
[1747781585547,7.34738001,2508.1,2508.0,1.3319]
[1747781585955,7.34738001,2508.1,2508.0,2.1291]
[1747781586459,0.79713,2508.3,2508.2,0.79714]
[1747781586651,3.2078,2508.3,2508.2,0.79714]
[1747781586852,3.2078,2508.3,2508.2,2.79056]
[1747781587254,4.00491,2508.3,2508.2,2.87542477]
[1747781588169,4.00491,2508.3,2508.2,2.79056]
[1747781589365,3.2078,2508.3,2508.2,0.79714]
[1747781589569,4.00491,2508.3,2508.2,1.99342]
[1747781590060,0.79714,2508.2,2508.1,0.79716]
[1747781590560,0.79714,2508.2,2508.1,1.99349999]
[1747781590764,0.79717,2508.1,2508.0,1.3319]
[1747781591168,0.79717,2508.1,2508.0,3.32548]
[1747781592167,0.79717,2508.1,2508.0,4.12268]
[1747781592666,0.79717,2508.1,2508.0,3.32548]
[1747781592872,0.7972,2508.0,2507.9,1.3209]
[1747781593168,8.6194,2508.0,2507.9,1.3209]
[1747781593465,10.61306,2508.0,2507.9,1.3209]
[1747781595067,0.79723,2507.9,2507.8,0.00597538]
[1747781595259,3.2078,2508.3,2508.2,0.79712]
[1747781595455,2.375077,2508.4,2508.3,0.79711]
[1747781595662,5.582877,2508.4,2508.3,0.79711]
[1747781595961,7.576217,2508.4,2508.3,0.79711]
[1747781596670,5.33244,2508.6,2508.5,0.79704]
[1747781596964,4.5354,2508.6,2508.5,0.79704]
[1747781597163,10.533395,2508.6,2508.5,0.79704]
[1747781597966,9.736385,2508.6,2508.5,0.79704]
[1747781598165,3.2078,2508.6,2508.5,2.790225]
[1747781600564,3.2078,2508.6,2508.5,3.10910123]
[1747781601063,8.408785,2508.6,2508.5,1.11591623]
[1747781601467,9.205795,2508.6,2508.5,0.31887623]
[1747781601667,9.205795,2508.6,2508.5,1.11591623]
[1747781601964,1.3961,2508.7,2508.6,0.79701]
[1747781602165,4.6039,2508.7,2508.6,2.73071]
[1747781602365,4.6039,2508.7,2508.6,3.42231]
[1747781602664,4.6039,2508.7,2508.6,5.415415]
[1747781602866,5.38e-06,2508.8,2508.7,0.79698]
[1747781603266,5.38e-06,2508.8,2508.7,2.790005]
[1747781603665,5.38e-06,2508.8,2508.7,7.790005]
[1747781604370,5.38e-06,2508.8,2508.7,2.790005]
[1747781604573,5.38e-06,2508.8,2508.7,7.790005]
[1747781604967,5.38e-06,2508.8,2508.7,8.11457753]
[1747781605667,5.38e-06,2508.8,2508.7,8.8138413]
[1747781606068,5.38e-06,2508.8,2508.7,6.8208163]
[1747781606269,5.38e-06,2508.8,2508.7,8.8138413]
[1747781608265,3.2078,2509.5,2508.7,8.0168613]
[1747781608570,3.87155367,2510.2,2509.8,0.79663]
[1747781608766,6.04895367,2510.2,2510.1,0.79654]
[1747781608968,0.79656,2510.1,2510.0,0.79655]
[1747781609276,0.79654,2510.1,2510.0,0.79655]
[1747781609578,5.99633,2510.1,2510.0,0.79655]
[1747781610574,5.99633,2510.1,2509.8,0.00597538]
[1747781610575,5.19979,2510.1,2509.8,0.00597538]
[1747781610779,4.0044,2509.9,2509.8,0.00597538]
[1747781611077,9.20435,2509.9,2509.8,0.80260538]
[1747781611576,9.90425,2509.9,2509.8,0.80260538]
[1747781613075,9.10765,2509.9,2509.8,0.80260538]
[1747781615377,5.89985,2509.9,2509.8,0.80260538]
[1747781617280,5.19995,2509.9,2509.8,0.80260538]
[1747781617476,4.66213,2510.2,2510.1,0.79654]
[1747781617671,3.8656,2510.2,2510.1,0.79654]
[1747781617876,6.4156,2510.2,2510.1,0.79654]
[1747781618079,6.4156,2510.2,2510.1,2.78845499]
[1747781618584,7.2121,2510.2,2510.1,2.78845499]
[1747781618883,6.4156,2510.2,2510.1,2.78845499]
[1747781619075,7.2121,2510.2,2510.1,2.78845499]
[1747781620176,0.66375367,2511.1,2510.5,3.98194]
[1747781620382,0.66375367,2511.1,2511.0,0.79625]
[1747781620782,0.66375367,2511.1,2511.0,4.15874999]
[1747781620983,1e-08,2511.1,2511.0,21.64874999]
[1747781621187,0.99587968,2511.3,2511.2,0.79619]
[1747781621373,1.00185506,2511.3,2511.2,4.00399]
[1747781621574,1.00185506,2511.3,2511.2,5.99503]
[1747781621779,0.00597538,2511.3,2511.2,5.99503]
[1747781623492,2.74011538,2511.3,2511.2,4.00399]
[1747781624274,4.05541538,2511.3,2511.2,4.00399]
[1747781624479,1.32127538,2511.3,2511.2,5.99503]
[1747781625785,0.00597538,2511.3,2511.2,5.99503]
[1747781625984,1.3153,2512.1,2511.4,0.79612]
[1747781626189,2.0584,2511.6,2511.5,4.00389]
[1747781626389,2.0584,2511.6,2511.5,5.32429]
[1747781626590,1.3153,2511.6,2511.5,7.31509]
[1747781627290,0.00597538,2511.8,2511.7,0.79603]
[1747781627685,0.74907538,2511.8,2511.7,0.79603]
[1747781627886,0.74907538,2511.8,2511.7,2.786675]
[1747781628388,0.79604,2511.7,2511.6,0.79604]
[1747781628589,1.3238,2511.7,2511.6,0.79604]
[1747781628889,2.0669,2511.7,2511.6,2.786765]
[1747781629091,1.3238,2511.7,2511.6,2.786765]
[1747781629786,2.0669,2511.7,2511.6,0.79604]
[1747781630088,4.057625,2511.7,2511.6,0.79604]
[1747781630993,4.853655,2511.7,2511.6,0.79604]
[1747781631194,5.495855,2511.7,2511.6,0.79604]
[1747781631894,0.79606,2511.6,2511.5,4.00388]
[1747781632093,2.84066,2511.6,2511.5,0.79608]
[1747781632395,4.83146001,2511.6,2511.5,0.79608]
[1747781632594,4.03540001,2511.6,2511.5,0.79608]
[1747781634096,4.03540001,2511.6,2511.3,0.80211538]
[1747781634301,0.7431,2511.4,2511.3,0.80211538]
[1747781634699,4.12116,2511.4,2511.3,0.80211538]
[1747781635505,2.1302,2511.4,2511.3,0.80211538]
[1747781635795,4.12116,2511.4,2511.3,0.80211538]
[1747781636299,4.78706,2511.4,2511.3,0.80211538]
[1747781637401,5.58318,2511.4,2511.3,0.00597538]
[1747781637803,5.58318,2511.4,2511.3,0.80212538]
[1747781638906,5.58318,2511.4,2511.3,0.00597538]
[1747781639405,5.58318,2511.4,2511.3,0.80212538]
[1747781639606,10.58318,2511.4,2511.3,0.00597538]
[1747781639803,0.79625,2511.0,2510.9,0.79627]
[1747781640001,0.7431,2511.0,2510.9,0.79628]
[1747781640202,2.73438001,2511.0,2510.9,0.79628]
[1747781640797,4.87373001,2511.0,2510.9,0.79628]
[1747781641196,4.07748001,2511.0,2510.9,0.79628]
[1747781641404,4.87373001,2511.0,2510.9,0.79628]
[1747781642000,0.79628,2510.9,2510.8,3.2078]
[1747781642304,0.79631,2510.8,2510.7,0.00597538]
[1747781642504,2.20741,2510.8,2510.7,0.00597538]
[1747781642706,5.546145,2510.8,2510.7,0.80232538]
[1747781645808,5.546145,2510.8,2510.7,0.00597538]
[1747781646011,5.546145,2510.8,2510.7,0.80232538]
[1747781646709,0.79641,2510.5,2510.4,0.31861056]
[1747781646913,3.531185,2510.5,2510.4,1.11505056]
[1747781647613,3.531185,2510.5,2510.4,0.79644]
[1747781647614,4.910385,2510.5,2510.4,0.79644]
[1747781648311,0.79644,2510.4,2510.3,4.28968885]
[1747781648505,2.94624,2510.4,2510.3,4.28968885]
[1747781648810,4.937995,2510.4,2510.3,0.28544885]
[1747781649311,3.398455,2510.4,2510.3,1.08191885]
[1747781649610,3.398455,2510.4,2510.3,0.79647]
[1747781649811,2.20314,2510.4,2510.3,0.79647]
[1747781650009,1.4067,2510.4,2510.3,0.79647]
[1747781650203,2.20314,2510.4,2510.3,0.79647]
[1747781650713,0.79647,2510.3,2510.2,4.01024538]
[1747781650906,2.20317,2510.3,2510.2,0.80244538]
[1747781651114,2.20317,2510.3,2510.2,2.79428038]
[1747781651313,1.4067,2510.3,2510.2,2.79428038]
[1747781656505,2.20317,2510.3,2510.2,2.79428038]
[1747781657117,4.938105,2510.3,2510.2,0.00597538]
[1747781657312,4.938105,2510.3,2510.2,0.80247538]
[1747781657511,2.94627,2510.3,2510.2,2.79431038]
[1747781657814,1.4067,2510.3,2510.2,2.79431038]
[1747781658010,0.80238538,2510.5,2510.4,0.79644]
[1747781658216,0.00597538,2510.5,2510.4,0.79644]
[1747781658417,0.7964,2510.6,2510.5,0.79637]
[1747781658721,0.7431,2510.7,2510.6,0.79638]
[1747781659019,1.53945,2510.7,2510.6,0.79638]
[1747781659214,0.79635,2510.7,2510.6,2.787895]
[1747781659416,4.01010538,2510.9,2510.8,0.79631]
[1747781659717,1.53943,2510.8,2510.7,2.15603]
[1747781659912,2.90023,2510.8,2510.7,2.15603]
[1747781660104,2.15713,2510.8,2510.7,2.15603]
[1747781660310,4.148565,2510.8,2510.7,1.3597]
[1747781660510,0.79641,2510.5,2510.4,1.44962]
[1747781660805,1.53951,2510.5,2510.4,1.44962]
[1747781661010,0.79641,2510.5,2510.4,1.44962]
[1747781661205,0.7964,2510.6,2510.5,0.79637]
[1747781661420,1.53951,2510.5,2510.4,2.8247]
[1747781662019,0.79641,2510.5,2510.4,2.8247]
[1747781662321,3.531185,2510.5,2510.4,0.6532]
[1747781662520,0.79644,2510.4,2510.3,1.45276]
[1747781662817,2.90074,2510.4,2510.3,1.45276]
[1747781663217,4.892495,2510.4,2510.3,0.6563]
[1747781664216,4.892495,2510.4,2510.2,0.00597538]
[1747781664520,1.53957,2510.3,2510.2,0.00597538]
[1747781664721,2.94277,2510.3,2510.2,0.00597538]
[1747781664921,4.934605,2510.3,2510.2,0.00597538]
[1747781667815,17.413605,2510.3,2510.2,0.00597538]
[1747781668319,22.413605,2510.3,2510.2,0.00597538]
[1747781668520,17.413605,2510.3,2510.2,0.00597538]
[1747781668725,22.413605,2510.3,2510.2,0.00597538]
[1747781669521,17.413605,2510.3,2510.2,0.00597538]
[1747781672326,4.934605,2510.3,2510.2,0.80247538]
[1747781672522,16.670505,2510.3,2510.2,0.80247538]
[1747781672824,4.191505,2510.3,2510.2,0.80247538]
[1747781673817,4.191505,2510.3,2510.2,0.00597538]
[1747781674014,4.191505,2510.3,2510.2,0.80247538]
[1747781675130,4.191505,2510.3,2510.2,0.00597538]
[1747781675727,4.934605,2510.3,2510.2,0.00597538]
[1747781682340,17.414605,2510.3,2510.2,0.00597538]
[1747781689138,4.934605,2510.3,2510.2,0.00597538]
[1747781689337,2.19967,2510.3,2510.2,0.00597538]
[1747781690332,2.20475201,2510.3,2510.2,0.00597538]
[1747781690940,4.19658701,2510.3,2510.2,0.00597538]
[1747781691737,2.20475201,2510.3,2510.2,0.00597538]
[1747781691931,4.93968701,2510.3,2510.2,0.00597538]
[1747781695842,3.16031151,2510.6,2510.2,10.20561038]
[1747781696046,3.61198915,2510.9,2510.8,0.79631]
[1747781696244,9.15e-06,2510.9,2510.8,16.47211]
[1747781696544,3.86666969,2511.2,2511.1,0.79622]
[1747781696737,2.06126969,2511.2,2511.1,17.73600797]
[1747781696945,2.06126969,2511.2,2511.1,24.72712797]
[1747781697339,2.06126969,2511.2,2511.1,11.28301974]
[1747781698043,0.00597538,2511.4,2511.3,0.79615]
[1747781698244,0.00597538,2511.4,2511.3,1.08402974]
[1747781698444,0.00597538,2511.4,2511.3,3.07498974]
[1747781698643,0.00597538,2511.4,2511.3,3.07695394]
[1747781699747,0.00597538,2511.4,2511.3,3.3954415]
[1747781699949,0.00597538,2511.4,2511.3,9.7631415]
[1747781700350,0.00597538,2511.4,2511.3,4.76283539]
[1747781701145,5.38e-06,2511.4,2511.3,9.76283539]
[1747781703038,5.38e-06,2511.4,2511.3,9.76228857]
[1747781703235,5.38e-06,2511.4,2511.3,10.14236043]
[1747781704151,13.853,2512.5,2512.4,0.79581]
[1747781704350,1.389,2512.5,2512.4,0.79581]
[1747781704647,3.2078,2513.1,2512.4,7.47573929]
[1747781704848,2.82433,2513.0,2512.8,0.79566]
[1747781705250,1.53875,2512.9,2512.7,0.79569]
[1747781705554,1.389,2512.8,2512.7,0.79569]
[1747781705852,2.92778,2512.8,2512.7,0.79569]
[1747781706046,4.12195,2512.8,2512.6,0.00597538]
[1747781706244,3.37885,2512.8,2512.7,0.79571]
[1747781706550,1.98985,2512.8,2512.7,0.79571]
[1747781706742,2.73295,2512.8,2512.7,2.11831]
[1747781706936,2.73295,2512.8,2512.7,1.3226]
[1747781706937,3.52863,2512.8,2512.7,1.3226]
[1747781707152,0.79571,2512.7,2512.6,0.00597538]
[1747781707452,2.1421,2512.7,2512.6,0.80171538]
[1747781708147,0.7431,2512.7,2512.6,0.80171538]
[1747781708851,2.73303,2512.7,2512.6,0.80171538]
[1747781709045,3.52874,2512.7,2512.6,0.00597538]
[1747781709247,4.84424,2512.7,2512.6,0.00597538]
[1747781710849,4.84424,2512.7,2512.6,0.80171538]
[1747781711848,4.84424,2512.7,2512.6,0.00597538]
[1747781712147,9.84424,2512.7,2512.6,0.00597538]
[1747781712351,17.30224,2512.7,2512.6,0.00597538]
[1747781712850,16.55914,2512.7,2512.6,0.00597538]
[1747781713046,17.30224,2512.7,2512.6,0.00597538]
[1747781715551,17.98574,2512.7,2512.6,0.00597538]
[1747781715954,17.19003,2512.7,2512.2,0.79585]
[1747781716157,0.7431,2512.3,2512.2,0.79585]
[1747781716553,2.0089,2512.4,2512.3,0.79584]
[1747781717056,4.74217001,2512.4,2512.3,0.79584]
[1747781717356,5.53800001,2512.4,2512.3,0.79584]